bitfinex/quotes_SOLUSD_20251031
["timestamp","ask_amount","ask_price","bid_price","bid_amount"]
[1761923547084,0.67,190.29,190.25,8.02300262]
[1761923548193,8.02300262,190.31,190.24,13.27946527]
[1761923548365,13.27781156,190.31,190.25,8.02300262]
[1761923548560,13.95781156,190.31,190.25,8.02300262]
[1761923549082,13.27781156,190.31,190.25,8.02300262]
[1761923549266,0.68,190.3,190.25,8.02300262]
[1761923550195,5.93488211,190.3,190.25,8.02300262]
[1761923550691,0.68,190.29,190.25,8.02300262]
[1761923551069,5.25488211,190.3,190.25,8.02300262]
[1761923551395,13.81589639,190.32,190.25,8.02300262]
[1761923551396,5.93435071,190.32,190.27,8.02300262]
[1761923551771,0.68,190.31,190.27,8.02300262]
[1761923552171,5.93480201,190.31,190.27,8.02300262]
[1761923552672,5.25480201,190.31,190.27,8.02300262]
[1761923553187,5.25480201,190.31,190.22,0.28432314]
[1761923553188,8.02300262,190.29,190.21,0.68]
[1761923553363,8.02300262,190.29,190.23,8.02300262]
[1761923553562,0.68,190.29,190.23,8.02300262]
[1761923553792,8.70300262,190.29,190.23,8.02300262]
[1761923554168,13.95841004,190.29,190.23,13.27968992]
[1761923554379,8.02300262,190.28,190.23,13.27968992]
[1761923554674,8.02300262,190.28,190.23,8.02300262]
[1761923554878,8.70300262,190.28,190.23,8.02300262]
[1761923555070,5.25540742,190.29,190.22,5.25701646]
[1761923555388,5.93540742,190.29,190.23,8.02300262]
[1761923555703,13.95841004,190.29,190.23,8.02300262]
[1761923556281,28.61500262,190.3,190.23,5.93662104]
[1761923556490,28.61500262,190.3,190.25,8.02300262]
[1761923556691,29.29500262,190.3,190.24,8.02300262]
[1761923557070,28.61500262,190.3,190.24,8.02300262]
[1761923557266,0.68,190.29,190.24,8.02300262]
[1761923557695,0.68,190.29,190.23,5.25662104]
[1761923558071,0.68,190.29,190.24,8.02300262]
[1761923558272,5.93514981,190.29,190.24,8.02300262]
[1761923558800,13.27771641,190.31,190.26,8.02300262]
[1761923559090,8.02300262,190.3,190.24,8.02300262]
[1761923559276,8.70300262,190.3,190.23,0.68]
[1761923559599,8.70300262,190.3,190.24,8.02300262]
[1761923560280,5.25513689,190.29,190.24,8.02300262]
[1761923560697,5.93513689,190.29,190.24,8.02300262]
[1761923560993,8.70300262,190.28,190.21,5.25714958]
[1761923561193,8.70300262,190.28,190.22,8.02300262]
[1761923561398,0.68,190.28,190.23,8.02300262]
[1761923561598,5.25513689,190.29,190.23,8.02300262]
[1761923561776,13.95813951,190.29,190.23,8.02300262]
[1761923562177,13.95813951,190.29,190.23,13.27977944]
[1761923562490,5.93513689,190.29,190.24,8.02300262]
[1761923562674,20.592,190.31,190.25,8.70300262]
[1761923562874,20.592,190.31,190.26,8.02300262]
[1761923563073,25.84659004,190.31,190.26,8.02300262]
[1761923563270,25.84659004,190.31,190.27,8.02300262]
[1761923563271,5.25459004,190.31,190.27,8.02300262]
[1761923563504,5.25459004,190.31,190.28,8.02300262]
[1761923563797,5.93459004,190.31,190.27,8.02300262]
[1761923566101,5.25459004,190.31,190.27,8.02300262]
[1761923566397,0.68,190.31,190.27,8.02300262]
[1761923566579,5.25465746,190.31,190.27,8.02300262]
[1761923567282,5.93465746,190.31,190.27,5.276152]
[1761923568189,5.93465746,190.31,190.26,5.276152]
[1761923568598,5.93465746,190.31,190.26,5.956152]
[1761923568996,5.93465746,190.31,190.27,5.276152]
[1761923569579,0.68,190.3,190.23,5.276152]
[1761923569905,5.93438442,190.32,190.27,5.276152]
[1761923570199,0.68,190.31,190.26,5.276152]
[1761923570406,5.956152,190.31,190.25,5.276152]
[1761923570615,0.68,190.31,190.26,5.276152]
[1761923570799,0.68,190.31,190.27,5.276152]
[1761923571712,5.9347324,190.31,190.26,10.532072]
[1761923571881,5.9347324,190.31,190.27,5.276152]
[1761923572077,5.2543847,190.32,190.27,5.276152]
[1761923572284,0.68,190.31,190.27,5.276152]
[1761923573304,0.68,190.31,190.27,2.3023543]
[1761923574213,5.93476631,190.31,190.25,5.25618785]
[1761923574394,5.25476631,190.31,190.25,5.93618785]
[1761923574589,0.68,190.4,190.3,4.6047086]
[1761923574908,5.93210084,190.4,190.35,2.3023543]
[1761923575386,0.68,190.39,190.35,2.3023543]
[1761923575587,2.3023543,190.37,190.29,0.68]
[1761923575897,0.68,190.39,190.29,0.68]
[1761923575898,2.3023543,190.38,190.32,2.3023543]
[1761923576311,5.2529285,190.37,190.32,2.3023543]
[1761923576492,8.2352828,190.37,190.32,2.3023543]
[1761923576691,5.9329285,190.37,190.32,2.3023543]
[1761923577130,5.9529285,190.37,190.3,0.68]
[1761923577300,5.9529285,190.37,190.32,2.3023543]
[1761923577501,2.3023543,190.33,190.24,47.0]
[1761923577739,2.3023543,190.32,190.24,52.90646297]
[1761923577924,20.592,190.34,190.25,2.3023543]
[1761923577925,2.3023543,190.3,190.25,2.3023543]
[1761923578113,2.3023543,190.29,190.24,2.3023543]
[1761923578318,7.55776737,190.28,190.23,2.3023543]
[1761923578621,5.95541307,190.28,190.22,2.3023543]
[1761923578928,8.25776737,190.28,190.23,2.3023543]
[1761923579335,8.25776737,190.28,190.23,5.27860156]
[1761923579336,0.7,190.27,190.23,5.27860156]
[1761923579496,10.53376339,190.29,190.23,5.27860156]
[1761923579701,5.95458966,190.31,190.27,5.27860156]
[1761923580001,5.27860156,190.3,190.2,10.07315083]
[1761923580317,10.53429084,190.27,190.22,5.27860156]
[1761923580506,10.53429084,190.27,190.21,10.53585945]
[1761923580825,0.7,190.26,190.16,0.65]
[1761923581025,5.27860156,190.24,190.18,5.27860156]
[1761923581218,5.27860156,190.24,190.19,5.27860156]
[1761923581428,5.97860156,190.23,190.17,5.27860156]
[1761923581647,0.7,190.23,190.12,0.65]
[1761923581940,0.7,190.22,190.19,5.27860156]
[1761923582110,20.592,190.24,190.2,5.27860156]
[1761923582421,5.97860156,190.26,190.22,5.27860156]
[1761923582422,0.7,190.26,190.22,5.27860156]
[1761923582940,5.95602392,190.26,190.21,5.27860156]
[1761923583106,20.592,190.26,190.23,5.27860156]
[1761923583306,25.84768017,190.28,190.23,5.27860156]
[1761923583507,0.7,190.26,190.22,5.27860156]
[1761923583745,25.84768017,190.28,190.23,5.27860156]
[1761923583921,5.95568017,190.28,190.25,5.27860156]
[1761923584244,5.25568017,190.28,190.18,0.65]
[1761923584408,5.25568017,190.28,190.23,5.27860156]
[1761923584604,0.7,190.27,190.18,0.28432314]
[1761923584840,5.27860156,190.24,190.19,5.27860156]
[1761923585139,5.27860156,190.22,190.15,5.25896903]
[1761923585337,20.592,190.25,190.19,5.27860156]
[1761923585548,25.87060156,190.25,190.19,5.27860156]
[1761923585709,5.97860156,190.24,190.16,0.65]
[1761923585905,5.97860156,190.24,190.18,5.27860156]
[1761923586153,5.97860156,190.23,190.18,5.27860156]
[1761923586348,11.23550758,190.23,190.15,19.05648414]
[1761923586659,11.23550758,190.23,190.16,5.27860156]
[1761923586660,5.97860156,190.22,190.16,5.27860156]
[1761923586807,5.27860156,190.2,190.15,5.27860156]
[1761923587010,5.27860156,190.18,190.1,5.26036485]
[1761923587241,0.7,190.19,190.11,5.27860156]
[1761923587440,5.27860156,190.17,190.1,5.26036485]
[1761923587610,5.27860156,190.18,190.12,5.27860156]
[1761923587806,0.7,190.19,190.14,5.27860156]
[1761923588044,5.27860156,190.21,190.15,5.27860156]
[1761923588251,5.97860156,190.2,190.15,5.27860156]
[1761923588421,5.27860156,190.18,190.13,5.27860156]
[1761923588813,0.7,190.17,190.13,5.27860156]
[1761923589012,0.7,190.17,190.12,5.27860156]
[1761923589216,5.97860156,190.17,190.11,5.27860156]
[1761923590036,0.7,190.17,190.12,5.27860156]
[1761923590246,5.97860156,190.17,190.09,19.062331]
[1761923590453,11.23713381,190.17,190.12,5.27860156]
[1761923590754,0.7,190.16,190.11,5.27860156]
[1761923590915,0.7,190.16,190.12,5.27860156]
[1761923591312,0.7,190.16,190.11,5.27860156]
[1761923591512,0.7,190.16,190.1,5.26036658]
[1761923591821,5.95825797,190.18,190.13,5.27860156]
[1761923592030,0.7,190.18,190.13,5.27860156]
[1761923592330,0.7,190.17,190.13,5.27860156]
[1761923592743,0.7,190.17,190.13,10.53815775]
[1761923592928,0.7,190.22,190.16,5.27860156]
[1761923593123,0.7,190.22,190.17,5.27860156]
[1761923594030,5.95734068,190.22,190.17,5.27860156]
[1761923594232,0.7,190.22,190.18,5.27860156]
[1761923594725,0.7,190.22,190.17,5.25841813]
[1761923595054,0.7,190.22,190.15,0.65]
[1761923595224,5.97860156,190.22,190.16,5.27860156]
[1761923595862,0.7,190.21,190.16,5.27860156]
[1761923596149,5.27860156,190.17,190.12,5.27860156]
[1761923596616,0.7,190.17,190.12,5.27860156]
[1761923597037,0.7,190.17,190.13,5.27860156]
[1761923597821,10.53701444,190.18,190.13,10.53809766]
[1761923598055,5.25841288,190.18,190.13,11.18809766]
[1761923598415,5.25768867,190.2,190.15,5.27860156]
[1761923598622,0.7,190.21,190.14,0.65]
[1761923598826,5.97860156,190.24,190.18,5.27860156]
[1761923599031,5.27860156,190.24,190.18,5.27860156]
[1761923599253,11.23539596,190.23,190.17,5.27860156]
[1761923599555,5.27860156,190.22,190.17,5.27860156]
[1761923599852,0.7,190.23,190.17,5.27860156]
[1761923600056,5.97860156,190.23,190.17,5.27860156]
[1761923600558,0.7,190.23,190.17,5.27860156]
[1761923600857,5.97860156,190.22,190.17,5.27860156]
[1761923601362,11.23592854,190.22,190.17,5.27860156]
[1761923601649,5.95732698,190.22,190.17,5.27860156]
[1761923601859,0.72,190.21,190.17,5.27860156]
[1761923602730,5.97755989,190.21,190.17,5.27860156]
[1761923602958,11.25616145,190.21,190.15,5.27860156]
[1761923603250,5.99860156,190.2,190.14,5.27860156]
[1761923603459,3.02541529,190.2,190.14,2.30541529]
[1761923603623,0.72,190.19,190.14,2.30541529]
[1761923603831,0.72,190.19,190.13,5.2594927]
[1761923604020,0.72,190.19,190.14,2.30541529]
[1761923604831,5.97795149,190.19,190.14,7.56462241]
[1761923605224,0.72,190.18,190.14,5.25920712]
[1761923605457,0.72,190.18,190.14,7.56462241]
[1761923606036,0.72,190.18,190.13,5.25955924]
[1761923606451,0.72,190.18,190.13,7.56497453]
[1761923606719,5.97829029,190.18,190.13,2.30541529]
[1761923607144,0.72,190.17,190.13,2.30541529]
[1761923607670,0.72,190.17,190.13,7.56490078]
[1761923608024,0.72,190.17,190.09,47.0]
[1761923608230,8.28405082,190.17,190.11,2.30541529]
[1761923608764,0.66,190.16,190.11,2.30541529]
[1761923609268,8.22430096,190.16,190.11,7.56551066]
[1761923609486,8.22430096,190.16,190.09,0.66]
[1761923609635,0.66,190.16,190.11,2.30541529]
[1761923609969,0.66,190.16,190.12,2.30541529]
[1761923610168,5.91823662,190.18,190.13,2.30541529]
[1761923610377,0.66,190.17,190.1,5.2601481]
[1761923610533,0.66,190.17,190.13,2.30541529]
[1761923610870,2.96541529,190.17,190.11,2.30541529]
[1761923611068,0.66,190.17,190.12,2.30541529]
[1761923611235,5.9184884,190.17,190.13,2.30541529]
[1761923611632,5.9184884,190.17,190.09,0.66]
[1761923611633,0.66,190.16,190.09,0.66]
[1761923611842,2.30541529,190.15,190.09,2.96541529]
[1761923612043,2.96541529,190.16,190.1,2.30541529]
[1761923612344,0.66,190.15,190.1,2.30541529]
[1761923612932,0.66,190.15,190.07,5.46118553]
[1761923613249,2.96541529,190.15,190.09,2.30541529]
[1761923613660,5.25928263,190.14,190.09,7.56597591]
[1761923614042,0.66,190.14,190.09,7.56597591]
[1761923614236,0.66,190.13,190.09,7.56597591]
[1761923615138,5.91905235,190.15,190.09,7.56597591]
[1761923615336,0.66,190.15,190.11,2.30541529]
[1761923615537,0.66,190.15,190.09,5.26056062]
[1761923615735,0.66,190.15,190.11,2.30541529]
[1761923616166,5.91902031,190.15,190.1,2.30541529]
[1761923616561,2.96541529,190.14,190.07,5.46118369]
[1761923616766,2.30541529,190.13,190.08,2.30541529]
[1761923617062,2.30541529,190.12,190.07,0.2]
[1761923617263,0.66,190.11,190.07,7.76654802]
[1761923617565,0.66,190.11,190.07,2.43382729]
[1761923617865,0.66,190.11,190.07,0.128412]
[1761923617866,2.96541529,190.11,190.07,0.128412]
[1761923618067,2.30541529,190.1,190.07,0.128412]
[1761923618258,2.96541529,190.1,190.07,0.128412]
[1761923618449,0.66,190.09,190.07,0.128412]
[1761923618682,2.30541529,190.08,190.07,0.128412]
[1761923619039,2.96541529,190.08,190.07,0.128412]
[1761923619370,8.22635805,190.08,190.07,0.128412]
[1761923620654,8.22635805,190.08,190.06,0.2]
[1761923620845,2.96541529,190.07,190.06,0.2]
[1761923621354,25.85377321,190.05,190.04,9.60943642]
[1761923621543,28.1591885,190.05,190.04,9.60943642]
[1761923621861,28.8191885,190.05,190.04,9.60943642]
[1761923622664,23.55741529,190.05,190.04,9.60943642]
[1761923622870,2.96541529,190.07,190.04,9.60943642]
[1761923623173,0.66,190.07,190.04,9.60943642]
[1761923623339,22.89741529,190.05,190.04,9.60943642]
[1761923623740,21.252,190.05,190.04,9.60943642]
[1761923625448,31.14476341,190.06,190.04,9.60943642]
[1761923625766,0.66,190.05,190.04,9.60943642]
[1761923625948,5.95117042,190.05,190.04,9.60943642]
[1761923626945,25.88317042,190.06,190.04,9.60943642]
[1761923627180,31.8047311,190.06,190.04,9.60943642]
[1761923627392,21.252,190.06,190.04,9.60943642]
[1761923627544,20.592,190.06,190.04,9.60943642]
[1761923627742,11.21212988,190.08,190.04,9.60943642]
[1761923627982,26.54317042,190.07,190.04,9.60943642]
[1761923628183,21.252,190.07,190.04,9.60943642]
[1761923628347,20.592,190.07,190.04,9.60943642]
[1761923628545,20.592,190.07,190.04,14.87147836]
[1761923629048,5.25990683,190.12,190.04,9.60943642]
[1761923629243,5.29117042,190.1,190.05,5.29117042]
[1761923629488,8.03571342,190.09,190.04,9.60943642]
[1761923629774,8.03571342,190.1,190.04,17.64514984]
[1761923629985,8.03571342,190.1,190.04,18.30514984]
[1761923630148,8.03571342,190.1,190.04,10.26943642]
[1761923630353,8.69571342,190.1,190.04,18.30514984]
[1761923630547,8.69571342,190.1,190.04,10.26943642]
[1761923630751,0.66,190.1,190.04,10.26943642]
[1761923630958,8.69571342,190.1,190.04,23.56719794]
[1761923631166,8.03571342,190.07,190.04,9.60943642]
[1761923631572,0.66,190.06,190.04,9.60943642]
[1761923632059,8.69571342,190.06,190.04,9.60943642]
[1761923632256,8.03571342,190.05,190.04,9.60943642]
[1761923632457,8.69571342,190.05,190.04,9.60943642]
[1761923632665,8.03571342,190.05,190.04,9.60943642]
[1761923632859,8.69571342,190.05,190.04,9.60943642]
[1761923633374,8.03571342,190.05,190.04,9.60943642]
[1761923633669,13.95748663,190.05,190.04,9.60943642]
[1761923633977,5.92177321,190.05,190.04,9.60943642]
[1761923634177,13.95748663,190.05,190.04,9.60943642]
[1761923635058,25.85269234,190.09,190.04,9.60943642]
[1761923635261,8.03571342,190.08,190.04,9.60943642]
[1761923635462,8.03571342,190.05,190.04,9.60943642]
[1761923635957,8.69571342,190.05,190.04,9.60943642]
[1761923636367,0.66,190.07,190.04,9.60943642]
[1761923636679,8.03571342,190.05,190.04,9.60943642]
[1761923636850,25.85278383,190.09,190.04,9.60943642]
[1761923636851,20.592,190.09,190.04,9.60943642]
[1761923637058,8.69571342,190.08,190.04,9.60943642]
[1761923637258,8.69571342,190.08,190.04,14.8713804]
[1761923637472,8.03571342,190.08,190.04,15.5713804]
[1761923637671,20.592,190.09,190.04,14.8713804]
[1761923637894,28.62771342,190.09,190.04,15.5713804]
[1761923638187,29.28771342,190.09,190.04,15.5713804]
[1761923638689,33.88838461,190.09,190.04,9.60943642]
[1761923638866,34.54838461,190.09,190.04,10.30943642]
[1761923639067,28.62771342,190.09,190.04,15.57145112]
[1761923639262,29.28771342,190.09,190.04,15.57145112]
[1761923639769,34.5484546,190.09,190.04,15.57145112]
[1761923639974,29.28771342,190.09,190.04,15.57145112]
[1761923640283,34.54845119,190.09,190.04,10.30943642]
[1761923640584,8.69571342,190.08,190.04,9.60943642]
[1761923641171,28.62771342,190.09,190.04,14.87133202]
[1761923641376,28.62771342,190.09,190.05,0.7]
[1761923641590,29.28771342,190.09,190.04,14.87133202]
[1761923641899,28.62771342,190.12,190.07,8.03571342]
[1761923642070,8.03571342,190.12,190.06,8.03571342]
[1761923642385,8.03571342,190.12,190.06,0.7]
[1761923642386,8.03571342,190.11,190.06,0.7]
[1761923642902,8.03571342,190.1,190.04,17.64514984]
[1761923643062,8.69571342,190.11,190.06,0.7]
[1761923643673,0.66,190.11,190.06,5.96142751]
[1761923643889,0.66,190.11,190.05,8.03571342]
[1761923643890,13.95590278,190.11,190.05,8.03571342]
[1761923644066,8.03571342,190.09,190.04,9.60943642]
[1761923644266,8.03571342,190.09,190.04,14.87142805]
[1761923644490,0.66,190.1,190.04,23.60714147]
[1761923644698,8.03571342,190.11,190.05,8.73571342]
[1761923644898,13.95590533,190.11,190.05,8.73571342]
[1761923645069,20.592,190.12,190.07,8.03571342]
[1761923645272,25.85185646,190.12,190.07,3.60477406]
[1761923645490,30.11663052,190.12,190.07,0.7]
[1761923645675,29.45663052,190.12,190.06,3.60477406]
[1761923645875,5.92020021,190.11,190.06,3.60477406]
[1761923646072,3.60477406,190.09,190.04,9.60943642]
[1761923646477,0.66,190.08,190.04,9.60943642]
[1761923646995,4.26477406,190.08,190.04,9.60943642]
[1761923647494,4.26477406,190.07,190.04,9.60943642]
[1761923647878,5.26149636,190.06,190.04,9.60943642]
[1761923648076,5.92149636,190.06,190.04,9.60943642]
[1761923648271,8.86627042,190.06,190.04,9.60943642]
[1761923648588,4.26477406,190.05,190.04,9.60943642]
[1761923648788,20.592,190.05,190.04,9.60943642]
[1761923648981,24.85677406,190.05,190.04,9.60943642]
[1761923649895,30.11854727,190.05,190.04,9.60943642]
[1761923650373,30.11854727,190.05,189.94,47.9]
[1761923650374,79.37067408,190.05,189.94,0.2]
[1761923650586,3.60477406,189.97,189.94,0.2]
[1761923650797,3.60477406,189.98,189.94,0.2]
[1761923650991,0.66,190.0,189.94,0.2]
[1761923651201,3.60477406,189.98,189.94,0.2]
[1761923651394,0.66,190.0,189.94,0.2]
[1761923651704,3.60477406,189.99,189.94,0.2]
[1761923651873,5.26371196,189.98,189.94,0.2]
[1761923652085,5.26371196,189.98,189.94,0.9]
[1761923652406,5.26371196,189.98,189.94,0.2]
[1761923652704,8.86848602,189.98,189.94,0.2]
[1761923653012,3.60477406,189.97,189.94,0.2]
[1761923654898,5.2628809,190.01,189.95,0.7]
[1761923655099,3.60477406,189.99,189.94,0.2]
[1761923655415,3.60477406,189.98,189.94,0.2]
[1761923655923,0.66,190.08,189.97,3.60477406]
[1761923656233,3.60477406,190.07,190.01,3.60477406]
[1761923656593,3.60477406,190.06,190.01,4.30477406]
[1761923657213,20.592,190.06,190.02,0.7]
[1761923657410,21.252,190.06,190.01,4.30477406]
[1761923657715,30.11833422,190.06,190.01,3.60477406]
[1761923657890,3.60477406,190.04,189.99,0.7]
[1761923658089,3.60477406,190.03,189.97,4.30477406]
[1761923658519,4.26477406,190.04,189.98,4.30477406]
[1761923658696,20.592,190.06,190.02,3.60477406]
[1761923658894,3.60477406,190.09,190.03,3.60477406]
[1761923659104,3.60477406,190.09,189.99,10.48882769]
[1761923659105,8.8654592,190.09,190.04,3.60477406]
[1761923659420,9.5254592,190.09,190.03,3.60477406]
[1761923660116,20.592,190.09,190.04,3.60477406]
[1761923660296,26.51267162,190.09,190.04,4.30477406]
[1761923660495,0.66,190.08,190.0,0.28432314]
[1761923660701,4.26477406,190.08,190.03,3.60477406]
[1761923661320,4.26477406,190.08,190.01,0.7]
[1761923661321,4.26477406,190.08,190.02,3.60477406]
[1761923662125,3.60477406,190.06,190.01,5.26284108]
[1761923662296,3.60477406,190.06,190.01,8.86761514]
[1761923662501,3.60477406,190.06,190.01,4.30477406]
[1761923662719,4.26477406,190.06,190.01,0.7]
[1761923662916,5.26121955,190.07,190.0,3.60477406]
[1761923663109,4.26477406,190.05,190.0,3.60477406]
[1761923663491,4.26477406,190.05,190.0,0.7]
[1761923663697,3.60477406,190.05,189.99,18.65701554]
[1761923663915,3.60477406,190.05,190.0,9.56776073]
[1761923664303,8.86634612,190.06,190.0,9.56776073]
[1761923664502,4.25477406,190.05,189.99,3.60477406]
[1761923665100,0.65,190.05,189.99,3.60477406]
[1761923665302,4.25477406,190.05,189.99,3.60477406]
[1761923665620,9.51668138,190.05,189.99,9.52809345]
[1761923665924,8.86631151,190.06,190.01,3.60477406]
[1761923666299,20.592,190.03,189.96,0.66]
[1761923666509,24.19677406,190.03,189.97,3.60477406]
[1761923666714,20.592,190.03,189.98,3.60477406]
[1761923666999,4.25477406,190.02,189.96,4.26477406]
[1761923667502,0.65,190.02,189.97,3.60477406]
[1761923667705,3.60477406,190.01,189.96,4.26477406]
[1761923668023,9.51757211,190.02,189.96,5.92424]
[1761923668221,9.51757211,190.02,189.96,9.52901406]
[1761923668421,3.60477406,190.01,189.96,9.52901406]
[1761923668618,3.60477406,190.01,189.96,9.55901406]
[1761923668814,3.60477406,190.01,189.97,0.69]
[1761923670301,8.8677083,190.01,189.95,0.97432314]
[1761923670633,0.71,190.0,189.95,5.95445617]
[1761923670933,0.71,190.0,189.95,9.55923023]
[1761923671526,5.97327785,190.0,189.95,9.55923023]
[1761923671830,0.71,190.0,189.95,9.55923023]
[1761923672131,5.97323798,190.0,189.95,5.95445617]
[1761923672325,8.86771509,190.01,189.96,0.69]
[1761923672529,0.71,190.02,189.96,4.29477406]
[1761923672719,4.31477406,190.02,189.96,4.29477406]
[1761923673512,9.57740726,190.02,189.96,4.29477406]
[1761923674730,0.71,190.08,190.01,3.60477406]
[1761923674922,24.90677406,190.08,190.02,3.60477406]
[1761923675530,4.31477406,190.08,190.02,3.60477406]
[1761923675712,4.31477406,190.08,190.01,0.69]
[1761923675713,4.31477406,190.07,190.01,4.29477406]
[1761923676432,0.71,190.07,190.02,3.60477406]
[1761923676729,0.71,190.07,190.02,4.29477406]
[1761923676936,5.97131627,190.07,190.02,4.29477406]
[1761923677342,8.86609033,190.07,190.01,3.60477406]
[1761923677517,0.71,190.06,190.01,3.60477406]
[1761923677720,21.302,190.06,190.01,8.86765263]
[1761923677916,0.71,190.08,190.03,3.60477406]
[1761923678135,4.31477406,190.1,190.04,3.60477406]
[1761923678355,4.31477406,190.1,190.03,3.60477406]
[1761923678551,20.592,190.08,190.03,3.60477406]
[1761923678719,20.592,190.08,190.03,4.29477406]
[1761923678920,20.592,190.08,190.04,0.69]
[1761923679325,0.71,190.1,190.04,0.69]
[1761923679326,9.57525255,190.1,190.04,0.69]
[1761923679828,9.57525255,190.1,190.04,10.29943642]
[1761923680038,9.57525255,190.1,190.04,19.1662599]
[1761923680217,5.97047849,190.1,190.04,19.1662599]
[1761923680423,8.86525255,190.1,190.05,0.69]
[1761923681152,9.57525255,190.1,190.05,0.69]
[1761923682148,0.71,190.09,190.04,13.21421048]
[1761923682453,0.71,190.09,190.04,13.90421048]
[1761923682638,5.26047849,190.1,190.05,0.69]
[1761923682840,9.57525255,190.1,190.05,0.69]
[1761923683061,0.71,190.09,190.04,13.21421048]
[1761923683263,4.31477406,190.09,190.04,9.60943642]
[1761923683550,5.26094276,190.08,190.04,10.29943642]
[1761923683935,9.57551003,190.09,190.04,10.29943642]
[1761923684135,5.26073597,190.09,190.04,13.90421048]
[1761923685028,5.26045763,190.1,190.05,3.60477406]
[1761923685229,5.26015694,190.11,190.06,3.60477406]
[1761923685446,5.26015694,190.11,190.07,0.69]
[1761923685749,29.45665368,190.12,190.07,0.69]
[1761923685928,26.56187962,190.12,190.07,4.29477406]
[1761923686134,9.57405669,190.14,190.08,3.60477406]
[1761923686358,9.57405669,190.14,190.07,5.9511084]
[1761923686553,0.71,190.13,190.08,3.60477406]
[1761923686735,4.31477406,190.13,190.07,4.29477406]
[1761923687058,3.60477406,190.11,190.05,19.6296901]
[1761923687228,4.31477406,190.12,190.06,3.60477406]
[1761923687429,9.57469302,190.12,190.06,8.86603663]
[1761923687665,9.57469302,190.12,190.06,3.60477406]
[1761923687839,4.31477406,190.11,190.05,14.36792489]
[1761923688038,0.71,190.11,190.06,4.29477406]
[1761923688653,0.71,190.11,190.07,0.69]
[1761923688849,0.71,190.11,190.06,3.60477406]
[1761923689054,0.71,190.11,190.06,4.29477406]
[1761923689449,0.71,190.11,190.07,2.30710267]
[1761923689759,5.97030288,190.11,190.06,2.99710267]
[1761923690330,5.97030288,190.11,190.06,8.25854551]
[1761923690936,5.97030288,190.11,190.06,2.99710267]
[1761923691450,5.97030288,190.11,190.06,8.2585731]
[1761923691949,5.26030288,190.11,190.07,0.69]
[1761923692655,5.97030288,190.11,190.06,2.30710267]
[1761923692954,5.97030288,190.11,190.06,2.99710267]
[1761923693266,5.97030288,190.11,190.07,2.99710267]
[1761923693570,28.86899522,190.12,190.07,0.69]
[1761923693739,0.71,190.11,190.07,2.30710267]
[1761923693941,0.71,190.11,190.06,2.30710267]
[1761923694160,3.01710267,190.11,190.05,3.28142581]
[1761923694466,5.26038926,190.1,190.05,18.33198937]
[1761923694641,5.26038926,190.1,190.05,16.0248867]
[1761923694967,5.26038926,190.1,190.06,2.99710267]
[1761923695261,5.26038926,190.1,190.04,9.60943642]
[1761923695262,0.71,190.09,190.04,9.60943642]
[1761923695436,3.01710267,190.09,190.04,9.60943642]
[1761923695846,3.01710267,190.08,190.04,9.60943642]
[1761923696033,0.71,190.08,190.04,9.60943642]
[1761923696850,5.97095612,190.08,190.04,9.60943642]
[1761923697157,0.71,190.08,190.04,14.87147411]
[1761923698242,33.74159482,190.12,190.05,2.97710267]
[1761923698243,21.262,190.12,190.05,2.97710267]
[1761923698443,0.67,190.11,190.05,5.93167208]
[1761923698664,0.67,190.11,190.06,0.67]
[1761923699161,0.67,190.13,190.1,2.30710267]
[1761923699363,0.67,190.17,190.12,2.30710267]
[1761923699676,0.67,190.17,190.14,2.30710267]
[1761923699856,0.67,190.19,190.15,2.30710267]
[1761923700049,20.592,190.18,190.15,2.30710267]
[1761923700451,18.39974766,190.22,190.13,5.25929176]
[1761923700452,5.25762355,190.2,190.13,5.25929176]
[1761923700650,0.67,190.2,190.13,5.92929176]
[1761923700966,2.97710267,190.2,190.13,0.67]
[1761923701162,2.30710267,190.16,190.1,2.30710267]
[1761923701365,2.30710267,190.15,190.09,2.30710267]
[1761923701574,0.67,190.14,190.09,2.30710267]
[1761923701868,2.30710267,190.13,190.08,2.30710267]
[1761923702037,0.67,190.14,190.07,0.67]
[1761923702241,0.67,190.17,190.12,2.30710267]
[1761923702566,20.592,190.16,190.13,2.30710267]
[1761923702747,5.92762355,190.2,190.15,2.30710267]
[1761923703150,26.51962355,190.2,190.16,2.30710267]
[1761923703353,0.67,190.19,190.12,0.67]